[Event "DVM U10 2024"]
[Site "Duesseldorf"]
[Date "2024.12.28"]
[Round "6"]
[White "Klaus, Simon"]
[Black "Naveen, Yuvaan"]
[Result "1-0"]
[ECO "B07"]
[WhiteElo "1197"]
[BlackElo "1110"]
[Annotator "NA RC"]
[PlyCount "143"]
[EventDate "2024.12.23"]
[EventType "team-tourn"]
[EventRounds "7"]
[EventCountry "GER"]
[SourceTitle "playchess.com"]
[Source "ChessBase"]
[SourceQuality "1"]
[TimeControl "3300+5"]

1. e4 {[%emt 0:00:01]} d6 {[%emt 0:00:04]} 2. d4 {[%emt 0:00:09]} Nf6 {[%emt 0:00:09]} 3. Bd3 {[%emt 0:00:13]} g6 {[%emt 0:00:18]} 4. f4 {[%emt 0:00:14]} Bg7 {[%emt 0:00:18]} 5. Nf3 {[%emt 0:00:21]} Bg4 {[%emt 0:00:12]} 6. O-O {[%emt 0:00:15]} Nfd7 {[%emt 0:00:20]} 7. c3 {[%emt 0:00:27]} e5 {[%emt 0:00:39]} 8. d5 {[%emt 0:01:05]} exf4 {[%emt 0:01:48]} 9. Bxf4 {[%emt 0:00:24]} Ne5 {[%emt 0:00:21]} 10. Bxe5 {[%emt 0:00:44]} Bxe5 {[%emt 0:00:43]} 11. h3 {[%emt 0:00:22]} Bxf3 {[%emt 0:00:17]} 12. Qxf3 {[%emt 0:00:12]} Qe7 {[%emt 0:00:37]} 13. Nd2 {[%emt 0:00:29]} Nd7 {[%emt 0:00:37]} 14. Bb5 {[%emt 0:01:11]} Rf8 {[%emt 0:00:42]} 15. Nc4 {[%emt 0:01:40]} Bg7 {[%emt 0:01:25]} 16. Bxd7+ {[%emt 0:00:30]} Qxd7 {[%emt 0:00:40]} 17. Qf4 {[%emt 0:02:07]} f5 {[%emt 0:01:20]} 18. Rae1 {[%emt 0:02:55]} O-O-O {[%emt 0:00:38]} 19. exf5 {[%emt 0:01:39]} Qxf5 {[%emt 0:00:50]} 20. Qxf5+ {[%emt 0:00:35]} Rxf5 {[%emt 0:00:27]} 21. Rxf5 {[%emt 0:00:44]} gxf5 {[%emt 0:00:08]} 22. Re7 {[%emt 0:00:23]} Rg8 {[%emt 0:01:40]} 23. Rf7 {[%emt 0:00:26]} Kd8 {[%emt 0:01:35]} 24. Rxf5 {[%emt 0:00:14]} Rf8 {[%emt 0:00:48]} 25. Rxf8+ {[%emt 0:00:21]} Bxf8 {[%emt 0:00:11]} 26. Kf2 {[%emt 0:00:46]} Ke7 {[%emt 0:00:16]} 27. Kf3 {[%emt 0:00:05]} Kf7 {[%emt 0:00:14]} 28. Kg4 {[%emt 0:01:00]} Kg6 {[%emt 0:00:09]} 29. Na5 {[%emt 0:00:38]} b6 {[%emt 0:00:18]} 30. Nc6 {[%emt 0:00:11]} a5 {[%emt 0:00:22]} 31. b3 {[%emt 0:00:43]} h5+ {[%emt 0:00:17]} 32. Kh4 {[%emt 0:01:11]} Kh6 {[%emt 0:00:51]} 33. g4 {[%emt 0:00:48]} hxg4 {[%emt 0:00:32]} 34. Kxg4 {[%emt 0:00:42]} Bg7 {[%emt 0:01:49]} 35. c4 {[%emt 0:00:11]} Bf6 {[%emt 0:00:19]} 36. Nb8 {[%emt 0:00:37]} Kg6 {[%emt 0:00:26]} 37. Na6 {[%emt 0:00:42]} Bd8 {[%emt 0:00:14]} 38. h4 {[%emt 0:00:32]} Kh6 {[%emt 0:00:12]} 39. Kf5 {[%emt 0:01:24]} Bxh4 {[%emt 0:00:22]} 40. Nxc7 {[%emt 0:00:08]} Bd8 {[%emt 0:00:16]} 41. Nb5 {[%emt 0:00:16]} Kg7 {[%emt 0:00:12]} 42. Ke6 {[%emt 0:00:21]} Kf8 {[%emt 0:00:15]} 43. Nxd6 {[%emt 0:00:26]} Bc7 {[%emt 0:00:36]} 44. Kd7 {[%emt 0:00:22]} Bb8 {[%emt 0:00:17]} 45. Nc8 {[%emt 0:00:24]} Kf7 {[%emt 0:01:10]} 46. Nxb6 {[%emt 0:00:24]} Kf6 {[%emt 0:00:12]} 47. Ke8 {[%emt 0:00:30]} Ba7 {[%emt 0:01:09]} 48. c5 {[%emt 0:00:37]} Ke5 {[%emt 0:00:27]} 49. d6 {[%emt 0:00:08]} Bxb6 {[%emt 0:00:20]} 50. cxb6 {[%emt 0:01:20]} Kxd6 {[%emt 0:00:12]} 51. b7 {[%emt 0:00:57]} Kc7 {[%emt 0:00:04]} 52. a4 {[%emt 0:00:59]} Kxb7 {[%emt 0:00:06]} 53. Kd7 {[%emt 0:00:10]} Kb6 {[%emt 0:00:08]} 54. Kd6 {[%emt 0:00:10]} Kb7 {[%emt 0:00:21]} 55. Kc5 {[%emt 0:00:14]} Ka6 {[%emt 0:00:05]} 56. Kc6 {[%emt 0:00:10]} Ka7 {[%emt 0:00:23]} 57. Kb5 {[%emt 0:00:03]} Kb7 {[%emt 0:00:08]} 58. Kxa5 {[%emt 0:00:16]} Ka7 {[%emt 0:00:13]} 59. b4 {[%emt 0:00:14]} Kb7 {[%emt 0:00:07]} 60. Kb5 {[%emt 0:00:24]} Kb8 {[%emt 0:00:08]} 61. Kb6 {[%emt 0:00:21]} Ka8 {[%emt 0:00:20]} 62. a5 {[%emt 0:00:33]} Kb8 {[%emt 0:00:06]} 63. b5 {[%emt 0:00:21]} Ka8 {[%emt 0:00:08]} 64. Kc7 {[%emt 0:00:14]} Ka7 {[%emt 0:00:11]} 65. b6+ {[%emt 0:00:07]} Ka6 {[%emt 0:00:09]} 66. b7 {[%emt 0:00:13]} Kxa5 {[%emt 0:00:43]} 67. b8=Q {[%emt 0:00:17]} Ka4 {[%emt 0:00:09]} 68. Kc6 {[%emt 0:00:06]} Ka3 {[%emt 0:00:10]} 69. Kc5 {[%emt 0:00:06]} Ka2 {[%emt 0:00:07]} 70. Kc4 {[%emt 0:00:10]} Ka1 {[%emt 0:00:06]} 71. Kc3 {[%emt 0:00:07]} Ka2 {[%emt 0:00:18]} 72. Qb2# {[%emt 0:00:19]} 1-0

[Event "DVM U10 2024"]
[Site "Duesseldorf"]
[Date "2024.12.28"]
[Round "6"]
[White "Stentrup, Levi"]
[Black "Zhukov, Eli"]
[Result "1-0"]
[ECO "C10"]
[WhiteElo "1185"]
[BlackElo "1018"]
[Annotator "NA RC"]
[PlyCount "105"]
[EventDate "2024.12.23"]
[EventType "team-tourn"]
[EventRounds "7"]
[EventCountry "GER"]
[SourceTitle "playchess.com"]
[Source "ChessBase"]
[SourceQuality "1"]
[TimeControl "3300+5"]

1. e4 {[%emt 0:00:01]} e5 {[%emt 0:00:05]} 2. Nf3 {[%emt 0:00:11]} Nf6 {[%emt 0:00:09]} 3. Nxe5 {[%emt 0:00:05]} d6 {[%emt 0:00:07]} 4. Nf3 {[%emt 0:00:04]} Nxe4 {[%emt 0:00:08]} 5. d3 {[%emt 0:00:03]} Nf6 {[%emt 0:00:31]} 6. Nc3 d5 {[%emt 0:00:04]} 7. d4 {[%emt 0:00:20]} Nc6 {[%emt 0:00:18]} 8. Bf4 {[%emt 0:00:12]} Bb4 {[%emt 0:00:31]} 9. Qd3 {[%emt 0:00:36]} Bxc3+ {[%emt 0:01:05]} 10. Qxc3 {[%emt 0:00:08]} Bf5 {[%emt 0:00:29]} 11. O-O-O {[%emt 0:00:11]} Qd7 {[%emt 0:01:42]} 12. Bb5 {[%emt 0:00:43]} a6 {[%emt 0:01:17]} 13. Bxc6 {[%emt 0:00:06]} Qxc6 {[%emt 0:00:13]} 14. Qxc6+ {[%emt 0:00:03]} bxc6 {[%emt 0:00:15]} 15. Bxc7 {[%emt 0:00:03]} Rc8 {[%emt 0:00:49]} 16. Bd6 {[%emt 0:01:06]} Ne4 {[%emt 0:00:57]} 17. Rhe1 {[%emt 0:00:20]} Kd7 {[%emt 0:01:00]} 18. Ne5+ {[%emt 0:00:34]} Ke8 {[%emt 0:04:51]} 19. f3 {[%emt 0:01:36]} Nxd6 {[%emt 0:07:12]} 20. Nc4+ {[%emt 0:01:31]} Kd8 {[%emt 0:10:26]} 21. Nxd6 {[%emt 0:02:23]} Rc7 {[%emt 0:00:20]} 22. Nxf5 {[%emt 0:01:33]} g6 {[%emt 0:00:38]} 23. Ng3 {[%emt 0:02:21]} Re8 {[%emt 0:03:07]} 24. Rxe8+ {[%emt 0:00:25]} Kxe8 {[%emt 0:00:13]} 25. Re1+ {[%emt 0:00:05]} Kd7 {[%emt 0:00:11]} 26. h4 {[%emt 0:00:32]} h5 {[%emt 0:00:34]} 27. f4 {[%emt 0:00:14]} f5 {[%emt 0:00:19]} 28. Re5 {[%emt 0:00:05]} Ra7 {[%emt 0:01:35]} 29. Nxf5 {[%emt 0:00:19]} gxf5 {[%emt 0:00:40]} 30. Rxf5 {[%emt 0:00:06]} Ke6 {[%emt 0:05:14]} 31. Rxh5 {[%emt 0:00:06]} Rf7 {[%emt 0:00:21]} 32. Re5+ {[%emt 0:00:27]} Kf6 {[%emt 0:00:43]} 33. g4 {[%emt 0:00:11]} Kg7 {[%emt 0:02:19]} 34. f5 {[%emt 0:00:26]} Rf6 {[%emt 0:04:50]} 35. Re7+ {[%emt 0:00:17]} Kf8 {[%emt 0:00:23]} 36. Re6 {[%emt 0:00:12]} Rf7 {[%emt 0:00:02]} 37. Rxc6 {[%emt 0:00:08]} Rh7 {[%emt 0:00:11]} 38. Rc8+ {[%emt 0:00:11]} Kg7 {[%emt 0:00:08]} 39. Rc7+ {[%emt 0:00:07]} Kh8 {[%emt 0:00:01]} 40. Rxh7+ {[%emt 0:00:07]} Kxh7 {[%emt 0:00:03]} 41. g5 {[%emt 0:00:11]} a5 {[%emt 0:01:37]} 42. h5 {[%emt 0:00:18]} a4 {[%emt 0:01:52]} 43. f6 {[%emt 0:00:24]} a3 {[%emt 0:00:36]} 44. f7 {[%emt 0:00:08]} Kg7 {[%emt 0:00:09]} 45. g6 {[%emt 0:00:07]} axb2+ {[%emt 0:00:00]} 46. Kxb2 {[%emt 0:00:05]} Kf8 {[%emt 0:00:30]} 47. h6 {[%emt 0:00:08]} Ke7 {[%emt 0:00:02]} 48. h7 {[%emt 0:00:08]} Kf6 {[%emt 0:00:00]} 49. f8=Q+ {[%emt 0:00:14]} Kg5 {[%emt 0:00:05]} 50. h8=Q {[%emt 0:00:09]} Kg4 {[%emt 0:00:17]} 51. Qhh6 {[%emt 0:00:14]} Kg3 {[%emt 0:00:05]} 52. Qff4+ {[%emt 0:00:14]} Kg2 {[%emt 0:00:01]} 53. Qhh2# {[%emt 0:00:13]} 1-0

[Event "DVM U10 2024"]
[Site "Duesseldorf"]
[Date "2024.12.28"]
[Round "6"]
[White "Shandi, Hasan"]
[Black "von der Thüsen, Gottfried"]
[Result "1-0"]
[ECO "C45"]
[WhiteElo "1153"]
[BlackElo "1041"]
[Annotator "NA"]
[PlyCount "111"]
[EventDate "2024.12.23"]
[EventType "team-tourn"]
[EventRounds "7"]
[EventCountry "GER"]
[SourceTitle "playchess.com"]
[Source "ChessBase"]
[SourceQuality "1"]
[TimeControl "3300+5"]

1. e4 {[%emt 0:00:03]} e5 {[%emt 0:00:09]} 2. Nf3 {[%emt 0:00:04]} Nc6 {[%emt 0:00:23]} 3. d4 {[%emt 0:00:09]} exd4 {[%emt 0:00:31]} 4. Nxd4 {[%emt 0:00:08]} d5 {[%emt 0:00:24]} 5. Nxc6 {[%emt 0:00:34]} bxc6 {[%emt 0:00:22]} 6. exd5 {[%emt 0:00:33]} Qxd5 {[%emt 0:00:30]} 7. Qxd5 {[%emt 0:00:31]} cxd5 {[%emt 0:00:18]} 8. Bb5+ {[%emt 0:00:08]} Bd7 {[%emt 0:00:15]} 9. Bxd7+ {[%emt 0:00:25]} Kxd7 {[%emt 0:00:48]} 10. O-O {[%emt 0:00:03]} Nf6 {[%emt 0:00:14]} 11. b3 {[%emt 0:00:43]} Bd6 {[%emt 0:00:20]} 12. Bb2 {[%emt 0:00:44]} Rhe8 {[%emt 0:00:43]} 13. Nc3 {[%emt 0:00:32]} Rad8 {[%emt 0:02:14]} 14. Rad1 {[%emt 0:01:27]} c6 {[%emt 0:00:46]} 15. Rfe1 {[%emt 0:00:46]} c5 {[%emt 0:00:58]} 16. Nb5 {[%emt 0:02:33]} a6 {[%emt 0:00:29]} 17. Bxf6 {[%emt 0:01:28]} gxf6 {[%emt 0:02:48]} 18. Nxd6 {[%emt 0:00:42]} Kxd6 {[%emt 0:00:21]} 19. f3 {[%emt 0:00:53]} Kc6 {[%emt 0:00:21]} 20. Rxe8 {[%emt 0:00:46]} Rxe8 {[%emt 0:00:16]} 21. Kf2 {[%emt 0:00:44]} d4 {[%emt 0:00:55]} 22. Re1 {[%emt 0:04:29]} Rxe1 {[%emt 0:01:17]} 23. Kxe1 {[%emt 0:00:02]} Kb5 {[%emt 0:00:06]} 24. a3 {[%emt 0:00:18]} c4 {[%emt 0:00:15]} 25. Kd2 {[%emt 0:00:39]} a5 {[%emt 0:01:43]} 26. bxc4+ {[%emt 0:03:49]} Kxc4 {[%emt 0:00:00]} 27. f4 {[%emt 0:00:46]} Kd5 {[%emt 0:00:00]} 28. Kd3 {[%emt 0:00:28]} a4 {[%emt 0:00:32]} 29. g4 {[%emt 0:01:48]} Kc5 {[%emt 0:00:29]} 30. c4 {[%emt 0:00:15]} dxc3 {[%emt 0:00:36]} 31. Kxc3 {[%emt 0:00:11]} h6 {[%emt 0:00:55]} 32. f5 {[%emt 0:02:53]} Kb5 {[%emt 0:00:57]} 33. Kd4 {[%emt 0:00:14]} Kc6 {[%emt 0:00:22]} 34. Kc4 {[%emt 0:00:09]} Kb6 {[%emt 0:00:45]} 35. Kb4 {[%emt 0:00:06]} Kb7 {[%emt 0:00:22]} 36. Kxa4 {[%emt 0:00:18]} Ka6 {[%emt 0:00:52]} 37. Kb4 {[%emt 0:00:07]} Kb6 {[%emt 0:00:30]} 38. a4 {[%emt 0:00:07]} Kc7 {[%emt 0:00:25]} 39. Kb5 {[%emt 0:00:15]} Kb7 {[%emt 0:00:14]} 40. Kc5 {[%emt 0:01:07]} Kc7 {[%emt 0:00:19]} 41. a5 {[%emt 0:00:15]} Kc8 {[%emt 0:00:27]} 42. Kd6 {[%emt 0:00:11]} Kd8 {[%emt 0:01:26]} 43. a6 {[%emt 0:00:01]} Kc8 {[%emt 0:00:15]} 44. a7 {[%emt 0:00:06]} Kb7 {[%emt 0:00:19]} 45. Ke7 {[%emt 0:00:03]} Ka8 {[%emt 0:00:57]} 46. Kxf6 {[%emt 0:00:07]} Kb7 {[%emt 0:00:19]} 47. Kxf7 {[%emt 0:00:06]} Ka8 {[%emt 0:00:13]} 48. Ke7 {[%emt 0:00:06]} Kb7 {[%emt 0:00:17]} 49. f6 {[%emt 0:00:07]} h5 {[%emt 0:00:20]} 50. gxh5 {[%emt 0:00:18]} Ka8 {[%emt 0:00:22]} 51. f7 {[%emt 0:00:04]} Kb7 {[%emt 0:00:05]} 52. f8=Q {[%emt 0:00:09]} Ka6 {[%emt 0:00:05]} 53. a8=Q+ {[%emt 0:00:16]} Kb6 {[%emt 0:00:00]} 54. Qfc8 {[%emt 0:00:11]} Kb5 {[%emt 0:00:01]} 55. Qab7+ {[%emt 0:00:27]} Ka5 {[%emt 0:00:11]} 56. Qca8# {[%emt 0:00:28]} 1-0

[Event "DVM U10 2024"]
[Site "Duesseldorf"]
[Date "2024.12.28"]
[Round "6"]
[White "Guan, Guoyou"]
[Black "Vahner, Danyil"]
[Result "1-0"]
[ECO "C45"]
[WhiteElo "1128"]
[BlackElo "838"]
[Annotator "NA RC"]
[PlyCount "145"]
[EventDate "2024.12.23"]
[EventType "team-tourn"]
[EventRounds "7"]
[EventCountry "GER"]
[SourceTitle "playchess.com"]
[Source "ChessBase"]
[SourceQuality "1"]
[TimeControl "3300+5"]

1. e4 {[%emt 0:00:01]} e5 {[%emt 0:00:04]} 2. Nf3 {[%emt 0:00:04]} Nc6 {[%emt 0:00:16]} 3. d4 {[%emt 0:00:08]} exd4 {[%emt 0:00:15]} 4. Bc4 {[%emt 0:00:11]} Be7 {[%emt 0:01:19]} 5. Nxd4 {[%emt 0:00:15]} Nxd4 {[%emt 0:00:14]} 6. Qxd4 {[%emt 0:00:11]} Nf6 {[%emt 0:00:26]} 7. Nc3 {[%emt 0:00:24]} d6 {[%emt 0:01:05]} 8. Bg5 {[%emt 0:00:19]} O-O {[%emt 0:00:27]} 9. O-O-O {[%emt 0:00:11]} Ng4 {[%emt 0:01:39]} 10. f3 {[%emt 0:00:14]} Bxg5+ {[%emt 0:00:14]} 11. Kb1 {[%emt 0:00:06]} Be3 {[%emt 0:00:56]} 12. Qd3 {[%emt 0:00:11]} Bc5 {[%emt 0:00:56]} 13. fxg4 {[%emt 0:00:08]} Bxg4 {[%emt 0:00:20]} 14. Rde1 {[%emt 0:00:15]} Qg5 {[%emt 0:00:47]} 15. Nd5 {[%emt 0:00:52]} c6 {[%emt 0:00:54]} 16. Nc3 {[%emt 0:00:43]} Bf2 {[%emt 0:00:41]} 17. Ref1 {[%emt 0:00:22]} Bb6 {[%emt 0:00:48]} 18. Qxd6 {[%emt 0:00:24]} Rad8 {[%emt 0:01:02]} 19. Qf4 {[%emt 0:00:48]} Be3 {[%emt 0:02:16]} 20. Bxf7+ {[%emt 0:01:07]} Kh8 {[%emt 0:00:37]} 21. Qxg5 {[%emt 0:00:33]} Bxg5 {[%emt 0:00:20]} 22. Bc4 {[%emt 0:00:25]} b5 {[%emt 0:02:12]} 23. Bb3 {[%emt 0:00:15]} b4 {[%emt 0:00:19]} 24. Na4 {[%emt 0:00:40]} Rxf1+ {[%emt 0:00:42]} 25. Rxf1 {[%emt 0:00:52]} Bf4 {[%emt 0:01:48]} 26. g3 {[%emt 0:00:15]} Be2 {[%emt 0:00:25]} 27. Re1 {[%emt 0:00:20]} Bg5 {[%emt 0:00:54]} 28. a3 {[%emt 0:00:41]} Bf3 {[%emt 0:00:33]} 29. axb4 {[%emt 0:00:12]} Bd2 {[%emt 0:00:24]} 30. Rf1 {[%emt 0:00:24]} Bxe4 {[%emt 0:00:15]} 31. Nc5 {[%emt 0:00:16]} Bxb4 {[%emt 0:00:43]} 32. Nxe4 {[%emt 0:00:12]} Rd4 {[%emt 0:01:01]} 33. c3 {[%emt 0:00:22]} Rxe4 {[%emt 0:00:24]} 34. cxb4 {[%emt 0:00:13]} h6 {[%emt 0:00:12]} 35. Bc2 {[%emt 0:00:13]} Re8 {[%emt 0:00:16]} 36. Bg6 {[%emt 0:00:25]} Rg8 {[%emt 0:00:29]} 37. Be4 {[%emt 0:00:12]} Rc8 {[%emt 0:00:43]} 38. Rd1 {[%emt 0:00:30]} Kg8 {[%emt 0:00:44]} 39. Rd6 {[%emt 0:00:17]} Rf8 {[%emt 0:01:13]} 40. Rxc6 {[%emt 0:00:21]} Re8 {[%emt 0:01:32]} 41. Bg6 {[%emt 0:00:14]} Rf8 {[%emt 0:01:25]} 42. Rc7 {[%emt 0:00:14]} Rf6 {[%emt 0:00:15]} 43. Rc8+ {[%emt 0:00:24]} Rf8 {[%emt 0:00:24]} 44. Bh7+ {[%emt 0:00:15]} Kf7 {[%emt 0:00:36]} 45. Bg6+ {[%emt 0:00:05]} Kg8 {[%emt 0:00:26]} 46. Rxf8+ {[%emt 0:00:07]} Kxf8 {[%emt 0:00:05]} 47. Kc2 {[%emt 0:00:07]} Ke7 {[%emt 0:00:29]} 48. Kc3 {[%emt 0:00:44]} Kd7 {[%emt 0:01:10]} 49. Kc4 {[%emt 0:00:00]} Kc6 {[%emt 0:00:21]} 50. b5+ {[%emt 0:00:00]} Kc7 {[%emt 0:00:17]} 51. Kc5 {[%emt 0:00:03]} Kd7 {[%emt 0:01:10]} 52. b4 {[%emt 0:00:31]} Kc7 {[%emt 0:00:40]} 53. g4 {[%emt 0:00:21]} Kd7 {[%emt 0:00:32]} 54. b6 {[%emt 0:00:12]} axb6+ {[%emt 0:00:26]} 55. Kxb6 {[%emt 0:00:21]} Kc8 {[%emt 0:00:22]} 56. Ka7 {[%emt 0:00:14]} h5 {[%emt 0:00:13]} 57. Bxh5 {[%emt 0:00:16]} g6 {[%emt 0:00:18]} 58. Bxg6 {[%emt 0:00:07]} Kd7 {[%emt 0:00:19]} 59. b5 {[%emt 0:00:08]} Ke6 {[%emt 0:00:41]} 60. b6 {[%emt 0:00:08]} Kf6 {[%emt 0:00:13]} 61. Bf5 {[%emt 0:00:12]} Kg5 {[%emt 0:00:38]} 62. b7 {[%emt 0:00:02]} Kh4 {[%emt 0:00:27]} 63. b8=Q {[%emt 0:01:19]} Kg5 {[%emt 0:00:06]} 64. Qg8+ {[%emt 0:00:15]} Kf4 {[%emt 0:00:24]} 65. h4 {[%emt 0:00:16]} Ke5 {[%emt 0:00:19]} 66. h5 {[%emt 0:00:10]} Kd6 {[%emt 0:01:01]} 67. h6 {[%emt 0:00:07]} Ke5 {[%emt 0:00:12]} 68. h7 {[%emt 0:00:22]} Kf4 {[%emt 0:01:33]} 69. h8=Q {[%emt 0:01:06]} Kg3 {[%emt 0:00:00]} 70. Qb3+ {[%emt 0:00:00]} Kf4 {[%emt 0:00:00]} 71. Qh6+ {[%emt 0:01:08]} Ke5 {[%emt 0:00:00]} 72. Qbe3+ {[%emt 0:00:06]} Kd5 {[%emt 0:00:03]} 73. Qhe6# {[%emt 0:00:12]} 1-0

[Event "DVM U10 2024"]
[Site "Duesseldorf"]
[Date "2024.12.28"]
[Round "6"]
[White "Mayer, Frederik Eliot"]
[Black "Kutschenreuter, Leo"]
[Result "1-0"]
[ECO "C50"]
[WhiteElo "1128"]
[BlackElo "1085"]
[Annotator "NA RC"]
[PlyCount "133"]
[EventDate "2024.12.23"]
[EventType "team-tourn"]
[EventRounds "7"]
[EventCountry "GER"]
[SourceTitle "playchess.com"]
[Source "ChessBase"]
[SourceQuality "1"]
[TimeControl "3300+5"]

1. e4 {[%emt 0:00:01]} e5 {[%emt 0:00:11]} 2. Nf3 {[%emt 0:00:06]} Nc6 {[%emt 0:00:12]} 3. Bc4 {[%emt 0:00:06]} Nf6 {[%emt 0:00:08]} 4. d3 {[%emt 0:00:14]} Bc5 {[%emt 0:00:10]} 5. Bg5 {[%emt 0:00:24]} h6 {[%emt 0:00:13]} 6. Bh4 {[%emt 0:00:31]} g5 {[%emt 0:00:11]} 7. Bg3 {[%emt 0:00:42]} d5 {[%emt 0:00:26]} 8. exd5 {[%emt 0:00:18]} Nxd5 {[%emt 0:00:10]} 9. Nxe5 {[%emt 0:00:40]} Nxe5 {[%emt 0:00:13]} 10. Bxe5 {[%emt 0:00:16]} Qe7 {[%emt 0:00:16]} 11. Qe2 {[%emt 0:00:20]} Rg8 {[%emt 0:00:33]} 12. c3 {[%emt 0:00:30]} Be6 {[%emt 0:00:17]} 13. d4 {[%emt 0:00:39]} Bb6 {[%emt 0:00:29]} 14. Nd2 {[%emt 0:01:01]} O-O-O {[%emt 0:00:18]} 15. Qf3 {[%emt 0:00:58]} f5 {[%emt 0:02:18]} 16. O-O {[%emt 0:00:41]} g4 {[%emt 0:00:32]} 17. Qe2 {[%emt 0:00:34]} h5 {[%emt 0:02:13]} 18. f3 {[%emt 0:00:42]} g3 {[%emt 0:00:57]} 19. Bxg3 {[%emt 0:01:25]} h4 {[%emt 0:00:32]} 20. Be5 {[%emt 0:00:25]} h3 {[%emt 0:01:29]} 21. g3 {[%emt 0:00:19]} f4 {[%emt 0:01:13]} 22. Bxd5 {[%emt 0:01:33]} Bxd5 {[%emt 0:00:18]} 23. Rfe1 {[%emt 0:00:23]} fxg3 {[%emt 0:00:23]} 24. Bxg3 {[%emt 0:01:13]} Qxe2 {[%emt 0:00:14]} 25. Rxe2 {[%emt 0:00:26]} c6 {[%emt 0:01:09]} 26. Kf2 {[%emt 0:00:46]} Bc7 {[%emt 0:00:58]} 27. Rg1 {[%emt 0:00:19]} Bxg3+ {[%emt 0:00:13]} 28. hxg3 {[%emt 0:00:44]} Rh8 {[%emt 0:00:24]} 29. Rh1 {[%emt 0:01:06]} Bxa2 {[%emt 0:00:27]} 30. Ree1 {[%emt 0:00:49]} Bd5 {[%emt 0:01:02]} 31. Ra1 {[%emt 0:00:18]} a6 {[%emt 0:00:15]} 32. Rae1 {[%emt 0:00:18]} b5 {[%emt 0:00:27]} 33. Rh2 {[%emt 0:00:43]} Kb7 {[%emt 0:00:41]} 34. Nb1 {[%emt 0:00:32]} Rdf8 {[%emt 0:00:39]} 35. f4 {[%emt 0:00:21]} Kb6 {[%emt 0:00:50]} 36. Na3 {[%emt 0:00:28]} a5 {[%emt 0:00:45]} 37. Nc2 {[%emt 0:00:41]} a4 {[%emt 0:00:35]} 38. Re5 {[%emt 0:00:59]} Ka5 {[%emt 0:02:57]} 39. Nb4 {[%emt 0:00:00]} Rd8 {[%emt 0:01:38]} 40. Rxd5 {[%emt 0:03:33]} cxd5 {[%emt 0:00:17]} 41. Nc6+ {[%emt 0:00:19]} Kb6 {[%emt 0:00:08]} 42. Nxd8 {[%emt 0:00:02]} Rxd8 {[%emt 0:00:13]} 43. Rxh3 {[%emt 0:00:07]} Ra8 {[%emt 0:00:14]} 44. Rh6+ {[%emt 0:00:27]} Kc7 {[%emt 0:00:15]} 45. f5 {[%emt 0:00:23]} Kd7 {[%emt 0:00:25]} 46. g4 {[%emt 0:00:18]} a3 {[%emt 0:00:11]} 47. bxa3 {[%emt 0:00:47]} Ke7 {[%emt 0:00:10]} 48. Re6+ {[%emt 0:00:46]} Kf7 {[%emt 0:00:08]} 49. Rb6 {[%emt 0:00:40]} Rxa3 {[%emt 0:00:03]} 50. Rxb5 {[%emt 0:00:20]} Rxc3 {[%emt 0:00:07]} 51. Rxd5 {[%emt 0:00:24]} Rc4 {[%emt 0:00:12]} 52. Kf3 {[%emt 0:00:27]} Kf6 {[%emt 0:00:10]} 53. Kf4 {[%emt 0:00:33]} Rc6 {[%emt 0:00:20]} 54. g5+ {[%emt 0:00:27]} Kf7 {[%emt 0:00:13]} 55. Rd7+ {[%emt 0:00:03]} Ke8 {[%emt 0:00:27]} 56. Ra7 {[%emt 0:01:09]} Kf8 {[%emt 0:00:24]} 57. Ke5 {[%emt 0:00:14]} Kg8 {[%emt 0:00:30]} 58. d5 {[%emt 0:00:12]} Rb6 {[%emt 0:00:14]} 59. f6 {[%emt 0:00:30]} Kf8 {[%emt 0:00:15]} 60. g6 {[%emt 0:00:17]} Rb8 {[%emt 0:00:16]} 61. d6 {[%emt 0:00:49]} Re8+ {[%emt 0:00:26]} 62. Re7 {[%emt 0:00:13]} Rc8 {[%emt 0:00:48]} 63. Ke6 {[%emt 0:00:43]} Kg8 {[%emt 0:00:38]} 64. f7+ {[%emt 0:01:38]} Kf8 {[%emt 0:00:24]} 65. Re8+ {[%emt 0:00:37]} Rxe8+ {[%emt 0:00:10]} 66. fxe8=Q+ {[%emt 0:00:32]} Kxe8 {[%emt 0:00:33]} 67. g7 {[%emt 0:00:00]} 1-0